bitfinex-derivatives/quotes_BTCF0:USTF0_20240929
["timestamp","ask_amount","ask_price","bid_price","bid_amount"]
[1727597524906,0.196255,65553.0,65550.0,0.09146418]
[1727597525106,0.0304,65552.0,65550.0,0.10146418]
[1727597525399,0.156656,65552.0,65550.0,0.01]
[1727597531120,0.156656,65552.0,65550.0,0.13]
[1727597535921,0.076257,65551.0,65550.0,0.13]
[1727597536723,0.086257,65551.0,65550.0,0.206258]
[1727597539718,0.086257,65551.0,65550.0,0.29188977]
[1727597545126,0.076252,65556.0,65553.0,0.076254]
[1727597545432,0.126252,65556.0,65555.0,0.12]
[1727597547425,0.126252,65556.0,65555.0,0.121]
[1727597547625,0.076252,65556.0,65555.0,0.121]
[1727597547825,0.086252,65556.0,65555.0,0.122]
[1727597548426,0.086252,65556.0,65555.0,0.20773912]
[1727597550622,0.086252,65556.0,65555.0,0.20673912]
[1727597550826,0.086252,65556.0,65555.0,0.20773912]
[1727597551924,0.086252,65556.0,65555.0,0.20673912]
[1727597552228,0.086252,65556.0,65555.0,0.20772346]
[1727597554437,0.086252,65556.0,65555.0,0.08772346]
[1727597557032,0.086252,65556.0,65555.0,0.08776724]
[1727597557435,0.206252,65556.0,65555.0,0.08776724]
[1727597557635,0.206252,65556.0,65555.0,0.16400242]
[1727597559631,0.567052,65556.0,65555.0,0.16400242]
[1727597561734,0.567052,65556.0,65555.0,0.16403367]
[1727597562142,0.567052,65556.0,65555.0,0.16403222]
[1727597564437,0.567052,65556.0,65555.0,0.08779704]
[1727597566746,0.447052,65556.0,65555.0,0.08776551]
[1727597567443,0.086252,65556.0,65555.0,0.08776551]
[1727597580553,0.086252,65556.0,65555.0,0.0878313]
[1727597582347,0.206252,65556.0,65555.0,0.0878313]
[1727597588260,0.206252,65556.0,65555.0,0.17929548]
[1727597588448,0.206252,65556.0,65555.0,0.0878313]
[1727597589150,0.206252,65556.0,65555.0,0.08774382]
[1727597590155,0.086252,65556.0,65555.0,0.08774382]
[1727597590558,0.086252,65556.0,65555.0,0.179208]
[1727597598867,0.086252,65556.0,65555.0,0.17921322]
[1727597602563,0.086252,65556.0,65555.0,0.08774904]
[1727597605563,0.086252,65556.0,65555.0,0.17921322]
[1727597606662,0.086252,65556.0,65555.0,0.08774904]
[1727597608468,0.086252,65556.0,65555.0,0.002]
[1727597608675,0.086252,65556.0,65555.0,0.08774606]
[1727597609374,0.086252,65556.0,65555.0,0.17921024]
[1727597609760,0.086252,65556.0,65555.0,0.08774606]
[1727597610167,0.086252,65556.0,65555.0,0.16399806]
[1727597613374,0.086252,65556.0,65555.0,0.16396383]
[1727597614375,0.076252,65556.0,65555.0,0.16396383]
[1727597616383,0.086252,65556.0,65555.0,0.16396383]
[1727597617778,0.086252,65556.0,65555.0,0.18580409]
[1727597618262,0.01,65556.0,65555.0,0.16398112]
[1727597618468,0.076249,65558.0,65556.0,0.07625]
[1727597618661,0.076249,65558.0,65557.0,0.08572912]
[1727597619461,0.086249,65558.0,65557.0,0.08572912]
[1727597620666,0.086249,65558.0,65557.0,0.08672912]
[1727597622479,0.086249,65558.0,65557.0,0.08669488]
[1727597623281,0.086249,65558.0,65557.0,0.08769488]
[1727597632784,0.086249,65558.0,65557.0,0.002]
[1727597632981,0.086249,65558.0,65557.0,0.08762306]
[1727597633279,0.086249,65558.0,65557.0,0.17912073]
[1727597634487,0.086249,65558.0,65557.0,0.25537073]
[1727597635585,0.086249,65558.0,65557.0,0.26537073]
[1727597636179,0.0324,65561.0,65557.0,0.18912073]
[1727597636383,0.0924,65561.0,65560.0,0.076246]
[1727597636682,0.0924,65561.0,65560.0,0.16186906]
[1727597639289,0.06,65561.0,65560.0,0.40470554]
[1727597639776,0.06,65561.0,65560.0,0.3284815]
[1727597641292,0.06,65561.0,65560.0,0.32831134]
[1727597643473,0.06,65561.0,65560.0,0.32931134]
[1727597644689,0.136245,65561.0,65560.0,0.32931134]
[1727597645791,0.136245,65561.0,65560.0,0.32933636]
[1727597647482,0.169145,65561.0,65560.0,0.16372392]
[1727597649083,0.169145,65561.0,65560.0,0.08747792]
[1727597649292,0.169145,65561.0,65560.0,0.002]
[1727597649704,0.169145,65561.0,65557.0,0.076208]
[1727597649705,0.076249,65558.0,65557.0,0.076208]
[1727597649900,0.076249,65558.0,65550.0,0.079858]
[1727597649901,0.07625,65557.0,65556.0,0.076208]
[1727597650203,0.30625,65557.0,65556.0,0.076208]
[1727597651098,0.30625,65557.0,65550.0,0.09862192]
[1727597651099,0.076251,65556.0,65555.0,0.076208]
[1727597651292,0.296251,65556.0,65555.0,0.16204848]
[1727597652998,0.296251,65556.0,65555.0,0.16304848]
[1727597654199,0.296251,65556.0,65555.0,0.077208]
[1727597655301,0.296251,65556.0,65555.0,0.001]
[1727597656509,0.297251,65556.0,65555.0,0.002]
[1727597663209,0.658051,65556.0,65555.0,0.002]
[1727597670504,0.538051,65556.0,65555.0,0.002]
[1727597670706,0.658051,65556.0,65555.0,0.002]
[1727597675112,0.658051,65556.0,65555.0,0.078208]
[1727597676210,0.658051,65556.0,65555.0,0.16409186]
[1727597677021,0.658051,65556.0,65555.0,0.16672186]
[1727597677920,0.734302,65556.0,65555.0,0.16672186]
[1727597678122,0.734302,65556.0,65555.0,0.08090134]
[1727597678520,0.734302,65556.0,65555.0,0.00463]
[1727597679122,0.734302,65556.0,65555.0,0.16689163]
[1727597679924,0.373502,65556.0,65555.0,0.16689163]
[1727597680128,0.734302,65556.0,65555.0,0.16689163]
[1727597680622,0.373502,65556.0,65555.0,0.16689163]
[1727597681122,0.373502,65556.0,65555.0,0.08090134]
[1727597681317,0.734302,65556.0,65555.0,0.08090134]
[1727597681722,0.373502,65556.0,65555.0,0.08090134]
[1727597682022,0.734302,65556.0,65555.0,0.08090134]
[1727597684023,0.373502,65556.0,65555.0,0.08090134]
[1727597684225,0.734302,65556.0,65555.0,0.08090134]
[1727597684526,0.373502,65556.0,65555.0,0.00463]
[1727597684731,0.734302,65556.0,65555.0,0.00463]
[1727597685629,0.734302,65556.0,65555.0,0.08090134]
[1727597686023,0.734302,65556.0,65555.0,0.00463]
[1727597687213,0.373502,65556.0,65555.0,0.00463]
[1727597687424,0.734302,65556.0,65555.0,0.00463]
[1727597687631,0.658051,65556.0,65555.0,0.00463]
[1727597691325,0.538051,65556.0,65555.0,0.00463]
[1727597691530,0.658051,65556.0,65555.0,0.00463]
[1727597696239,0.658051,65556.0,65555.0,0.08090134]
[1727597697130,0.658051,65556.0,65555.0,0.00463]
[1727597699240,0.658051,65556.0,65555.0,0.08090134]
[1727597703340,0.658051,65556.0,65555.0,0.16669518]
[1727597706545,0.076252,65555.0,65554.0,0.01935134]
[1727597706750,0.076256,65552.0,65551.0,0.03]
[1727597707045,0.286256,65552.0,65551.0,0.11595274]
[1727597707231,0.286256,65552.0,65551.0,0.03]
[1727597710248,0.289256,65552.0,65551.0,0.03]
[1727597711239,0.292256,65552.0,65551.0,0.03]
[1727597712142,0.292256,65552.0,65551.0,0.0909942]
[1727597723157,0.653056,65552.0,65551.0,0.0909942]
[1727597723557,0.533056,65552.0,65551.0,0.0909942]
[1727597723855,0.533056,65552.0,65551.0,0.03]
[1727597732668,0.653056,65552.0,65551.0,0.03]
[1727597733367,0.653056,65552.0,65551.0,0.03263]
[1727597736374,0.653056,65552.0,65551.0,0.11808958]
[1727597736570,0.653056,65552.0,65551.0,0.19437641]
[1727597738162,0.533056,65552.0,65551.0,0.19437806]
[1727597738374,0.653056,65552.0,65551.0,0.19437806]
[1727597740278,0.653056,65552.0,65551.0,0.19437284]
[1727597741573,0.292256,65552.0,65551.0,0.19437284]
[1727597742765,0.292256,65552.0,65551.0,0.19437541]
[1727597750086,0.292256,65552.0,65551.0,0.19439381]
[1727597751171,0.292256,65552.0,65551.0,0.11810698]
[1727597753187,0.292256,65552.0,65551.0,0.08810698]
[1727597753377,0.322956,65552.0,65551.0,0.08810698]
[1727597753578,0.322956,65552.0,65551.0,0.1644134]
[1727597756980,0.322956,65552.0,65551.0,0.07893642]
[1727597757176,0.322956,65552.0,65551.0,0.00263]
[1727597759989,0.399212,65552.0,65551.0,0.00263]
[1727597760192,1.456852,65552.0,65551.0,0.00263]
[1727597760592,0.152518,65549.0,65548.0,0.0036]
[1727597760802,0.07626,65548.0,65545.0,0.04578402]
[1727597761098,0.12,65546.0,65545.0,0.04578402]
[1727597761295,0.076265,65544.0,65543.0,0.04578402]
[1727597761598,0.306265,65544.0,65543.0,0.04578402]
[1727597761784,0.667065,65544.0,65543.0,0.04578402]
[1727597762188,0.547065,65544.0,65543.0,0.04578402]
[1727597762387,0.076266,65543.0,65542.0,0.04578402]
[1727597762591,0.296266,65543.0,65542.0,0.04578402]
[1727597763590,0.176266,65543.0,65542.0,0.04578402]
[1727597763899,0.296266,65543.0,65542.0,0.04578402]
[1727597764290,0.076269,65541.0,65540.0,0.0036]
[1727597764593,0.12,65543.0,65538.0,0.0610427]
[1727597764793,0.076267,65542.0,65541.0,0.04570499]
[1727597765093,0.286267,65542.0,65541.0,0.04570499]
[1727597765991,0.282267,65542.0,65541.0,0.04570499]
[1727597766187,0.07627,65540.0,65538.0,0.0610427]
[1727597766393,0.06927,65540.0,65538.0,0.0610427]
[1727597766800,0.12,65542.0,65538.0,0.0610427]
[1727597766801,0.076271,65539.0,65538.0,0.0610427]
[1727597767006,0.086271,65539.0,65538.0,0.0610427]
[1727597767205,0.081271,65539.0,65538.0,0.0610427]
[1727597767406,0.201271,65539.0,65537.0,0.0610427]
[1727597767707,0.076272,65538.0,65537.0,0.0610427]
[1727597767998,0.086272,65538.0,65537.0,0.0610427]
[1727597769296,0.086272,65538.0,65536.0,0.0610427]
[1727597769697,0.077272,65538.0,65536.0,0.0610427]
[1727597770507,0.078272,65538.0,65537.0,0.01]
[1727597771906,0.071272,65538.0,65537.0,0.01]
[1727597772499,0.071272,65538.0,65536.0,0.1920427]
[1727597773218,0.071272,65538.0,65537.0,0.003]
[1727597773905,0.070272,65538.0,65536.0,0.1810427]
[1727597774101,0.071272,65538.0,65536.0,0.1840427]
[1727597774702,0.072272,65538.0,65537.0,0.007]
[1727597775813,0.071272,65538.0,65536.0,0.1840427]
[1727597776005,0.072272,65538.0,65536.0,0.1880427]
[1727597776815,0.072272,65538.0,65537.0,0.01]
[1727597777900,0.071272,65538.0,65536.0,0.1960427]
[1727597778216,0.072272,65538.0,65536.0,0.1960427]
[1727597779311,0.072272,65538.0,65537.0,0.0610427]
[1727597780208,0.072272,65538.0,65537.0,0.0680427]
[1727597780811,0.071272,65538.0,65537.0,0.0680427]
[1727597781011,0.072272,65538.0,65537.0,0.0780427]
[1727597782311,0.072272,65538.0,65537.0,0.017]
[1727597788314,0.072272,65538.0,65537.0,0.17927438]
[1727597789220,0.072272,65538.0,65537.0,0.10296796]
[1727597792825,0.072272,65538.0,65537.0,0.10196796]
[1727597795321,0.072272,65538.0,65537.0,0.10199694]
[1727597802935,0.072272,65538.0,65537.0,0.10199264]
[1727597805047,0.072272,65538.0,65537.0,0.10199902]
[1727597809639,0.072272,65538.0,65537.0,0.10200536]
[1727597814356,0.072272,65538.0,65537.0,0.10195188]
[1727597819149,0.072272,65538.0,65537.0,0.10197588]
[1727597829155,0.072272,65538.0,65537.0,0.17829363]
[1727597833156,0.072272,65538.0,65537.0,0.09231775]
[1727597837955,0.072272,65538.0,65537.0,0.1017868]
[1727597838360,0.072272,65538.0,65537.0,0.1007868]
[1727597838561,0.072272,65538.0,65537.0,0.4707868]
[1727597838761,0.072272,65538.0,65537.0,0.4697868]
[1727597841869,0.072272,65538.0,65537.0,0.4724168]
[1727597846672,0.012,65538.0,65537.0,0.1024168]
[1727597846872,0.012,65538.0,65537.0,0.65156867]
[1727597846873,0.002,65538.0,65537.0,0.65156867]
[1727597847268,0.002,65538.0,65537.0,1.05386867]
[1727597848574,0.002,65538.0,65537.0,0.5817898]
[1727597848980,0.002,65538.0,65537.0,0.9517898]
[1727597849476,0.002,65538.0,65537.0,0.5817898]
[1727597850180,0.002,65538.0,65537.0,0.5055168]
[1727597850568,0.002,65538.0,65537.0,0.50514745]
[1727597853073,0.002,65538.0,65537.0,1.56290745]
[1727597853376,0.002,65538.0,65537.0,1.72315943]
[1727597854878,0.0036,65542.0,65537.0,1.81467915]
[1727597855072,0.079864,65546.0,65545.0,0.12]
[1727597855378,0.079864,65546.0,65545.0,0.20541745]
[1727597855379,0.076264,65546.0,65545.0,0.20541745]
[1727597856681,0.126264,65546.0,65545.0,0.08541745]
[1727597856872,0.126264,65546.0,65545.0,0.20541745]
[1727597857271,0.126264,65546.0,65545.0,0.28158771]
[1727597857569,0.126264,65546.0,65545.0,0.16158771]
[1727597857769,0.076264,65545.0,65544.0,0.13787026]
[1727597857980,0.116264,65545.0,65544.0,0.22296677]
[1727597858181,0.116264,65545.0,65544.0,0.19146677]
[1727597859284,0.116264,65545.0,65544.0,0.10637026]
[1727597859882,0.116264,65545.0,65544.0,0.0312]
[1727597860672,0.116264,65545.0,65544.0,0.05317709]
[1727597861179,0.116264,65545.0,65544.0,0.0312]
[1727597861377,0.236264,65545.0,65544.0,0.001]
[1727597861577,0.312528,65545.0,65544.0,0.06192742]
[1727597861780,0.312528,65545.0,65544.0,0.04569661]
[1727597862080,0.312528,65545.0,65542.0,0.06092742]
[1727597862081,0.16,65545.0,65542.0,0.04569661]
[1727597862276,0.152534,65542.0,65541.0,0.04570104]
[1727597862478,0.382534,65542.0,65541.0,0.04570104]
[1727597862677,0.07627,65540.0,65539.0,0.06092742]
[1727597862878,0.18627,65540.0,65539.0,0.06092742]
[1727597865480,0.54707,65540.0,65539.0,0.06092742]
[1727597866991,0.54707,65540.0,65539.0,0.06492742]
[1727597867173,0.54707,65540.0,65539.0,0.004]
[1727597867879,0.54807,65540.0,65539.0,0.01]
[1727597870076,0.54807,65540.0,65539.0,0.07092742]
[1727597870379,0.54807,65540.0,65539.0,0.01]
[1727597872479,0.18727,65540.0,65539.0,0.01]
[1727597872787,0.54807,65540.0,65539.0,0.01]
[1727597872986,0.18727,65540.0,65539.0,0.01]
[1727597873183,0.54807,65540.0,65539.0,0.01]
[1727597875191,0.18727,65540.0,65539.0,0.01]
[1727597875378,0.54807,65540.0,65539.0,0.01]
[1727597876892,0.18727,65540.0,65539.0,0.01]
[1727597877086,0.54807,65540.0,65539.0,0.01]
[1727597877787,0.18727,65540.0,65539.0,0.01]
[1727597878187,0.54807,65540.0,65539.0,0.01]
[1727597878385,1.08206,65540.0,65539.0,0.0054]
[1727597878588,0.62434,65540.0,65539.0,0.0054]
[1727597879091,1.08206,65540.0,65539.0,0.0054]
[1727597880187,0.152544,65538.0,65537.0,0.29168423]
[1727597880492,0.743344,65538.0,65537.0,0.29168423]
[1727597881587,1.104144,65538.0,65537.0,0.29168423]
[1727597882391,1.104144,65538.0,65537.0,0.28905423]
[1727597883885,0.382544,65538.0,65537.0,0.28905423]
[1727597884084,1.104144,65538.0,65537.0,0.28905423]
[1727597885695,1.114144,65538.0,65537.0,0.28905423]
[1727597886082,0.152548,65536.0,65535.0,0.0036]
[1727597886284,0.11,65536.0,65531.0,0.0072]
[1727597886486,0.633358,65532.0,65531.0,0.0036]
[1727597886692,0.152562,65530.0,65529.0,0.04570732]
[1727597886887,0.252562,65530.0,65529.0,0.04570732]
[1727597888194,0.176281,65530.0,65529.0,0.04570732]
[1727597888895,0.296281,65530.0,65529.0,0.04570732]
[1727597889095,0.296281,65530.0,65529.0,0.04670732]
[1727597889400,0.296281,65530.0,65529.0,0.001]
[1727597889895,0.076284,65528.0,65527.0,0.06452742]
[1727597890097,0.186284,65528.0,65527.0,0.06092742]
[1727597891395,0.076285,65527.0,65525.0,0.05439919]
[1727597891698,0.266285,65527.0,65525.0,0.05439919]
[1727597892492,0.146285,65527.0,65525.0,0.05439919]
[1727597892683,0.266285,65527.0,65525.0,0.05439919]
[1727597893490,0.266285,65527.0,65526.0,0.37]
[1727597895996,0.267285,65527.0,65526.0,0.37]
[1727597897600,0.071,65527.0,65526.0,0.37]
[1727597900289,0.074,65527.0,65526.0,0.37]
[1727597904300,0.074,65527.0,65526.0,0.44617026]
[1727597904514,0.074,65527.0,65526.0,0.53194484]
[1727597905002,0.074,65527.0,65526.0,0.44617026]
[1727597905200,0.074,65527.0,65526.0,0.53198673]
[1727597906199,0.074,65527.0,65526.0,0.45581647]
[1727597906801,0.150285,65527.0,65526.0,0.45581647]
[1727597910102,0.150285,65527.0,65526.0,0.4559093]
[1727597914808,0.150285,65527.0,65526.0,0.4559043]
[1727597919413,0.150285,65527.0,65526.0,0.37]
[1727597919606,0.150285,65527.0,65526.0,0.45590135]
[1727597924516,0.150285,65527.0,65526.0,0.45586908]
[1727597929019,0.150285,65527.0,65526.0,0.45586852]
[1727597933824,0.150285,65527.0,65526.0,0.45587]
[1727597936718,0.150285,65527.0,65526.0,0.57587]
[1727597944150,0.150285,65527.0,65526.0,0.60627]
[1727597946639,0.150285,65527.0,65526.0,0.60631035]
[1727597947454,0.074,65527.0,65526.0,0.60631035]
[1727597947652,0.074,65527.0,65526.0,0.82491408]
[1727597947653,0.004,65527.0,65526.0,0.82491408]
[1727597947858,0.076277,65534.0,65530.0,0.076281]
[1727597948046,0.086277,65534.0,65531.0,0.19529035]
[1727597948353,0.086277,65534.0,65533.0,0.1962992]
[1727597948546,0.086277,65534.0,65533.0,0.28220955]
[1727597949351,0.086277,65534.0,65533.0,0.1962992]
[1727597949847,0.092277,65534.0,65533.0,0.1962992]
[1727597950243,0.092277,65534.0,65533.0,0.12]
[1727597950949,0.094277,65534.0,65533.0,0.121]
[1727597951347,0.100277,65534.0,65533.0,0.121]
[1727597951547,0.100277,65534.0,65533.0,0.197278]
[1727597951548,0.014,65534.0,65533.0,0.197278]
[1727597951750,0.014,65534.0,65533.0,0.90738081]
[1727597951945,0.014,65534.0,65533.0,0.44958081]
[1727597952251,0.014,65534.0,65533.0,0.45958081]
[1727597952442,0.014,65534.0,65533.0,0.91738081]
[1727597952847,0.017,65534.0,65533.0,0.91838081]
[1727597953040,0.017,65534.0,65533.0,0.46058081]
[1727597953545,0.017,65534.0,65533.0,0.55218114]
[1727597953744,0.017,65534.0,65533.0,0.46058081]
[1727597954454,0.017,65534.0,65533.0,0.5520182]
[1727597955451,0.017,65534.0,65533.0,0.46058081]
[1727597958443,0.017,65534.0,65533.0,0.45058081]
[1727597959958,0.017,65534.0,65533.0,0.81138081]
[1727597960454,0.017,65534.0,65533.0,0.45058081]
[1727597963558,0.027,65534.0,65533.0,0.45058081]
[1727597966358,0.027,65534.0,65533.0,0.28387607]
[1727597966954,0.017,65534.0,65533.0,0.28387607]
[1727597968260,0.017,65534.0,65533.0,0.29387607]
[1727597975365,0.017,65534.0,65533.0,0.38531346]
[1727597977367,0.017,65534.0,65533.0,0.29387607]
[1727597978272,0.017,65534.0,65533.0,0.39548826]
[1727597979059,0.017,65534.0,65533.0,0.17387607]
[1727597979260,0.017,65534.0,65533.0,0.39551417]
[1727597979763,0.017,65534.0,65533.0,0.39518568]
[1727597982268,0.017,65534.0,65533.0,0.75598568]
[1727597983675,0.017,65534.0,65533.0,0.569078]
[1727597984269,0.017,65534.0,65533.0,0.75609192]
[1727597986170,0.017,65534.0,65533.0,0.569078]
[1727597990362,0.017,65534.0,65533.0,0.75933662]
[1727597990960,0.017,65534.0,65533.0,0.74933662]
[1727597991669,0.017,65534.0,65533.0,0.67305862]
[1727597991860,0.009,65534.0,65533.0,0.67505862]
[1727597992064,0.009,65534.0,65533.0,0.68505862]
[1727597992564,0.076273,65537.0,65533.0,0.68505862]
[1727597992764,0.086273,65537.0,65536.0,0.12]
[1727597992965,0.086273,65537.0,65536.0,0.20679833]
[1727597993874,0.086273,65537.0,65536.0,0.08679833]
[1727597994383,0.076277,65534.0,65533.0,0.3668]
[1727597994565,0.076277,65534.0,65533.0,0.45373614]
[1727597994566,0.176277,65534.0,65533.0,0.45373614]
[1727597995663,0.176277,65534.0,65533.0,0.09293614]
[1727597996170,0.176277,65534.0,65533.0,0.08793614]
[1727597996364,0.657077,65534.0,65533.0,0.17951812]
[1727597996565,0.657077,65534.0,65532.0,0.07989744]
[1727597996566,0.076278,65533.0,65532.0,0.07989744]
[1727597996772,0.07628,65531.0,65530.0,0.07629744]
[1727597996977,0.12,65530.0,65529.0,0.07629744]
[1727597997166,0.12,65530.0,65528.0,0.07989744]
[1727597997167,0.076283,65529.0,65528.0,0.07989744]
[1727597997365,0.076285,65527.0,65526.0,0.07629744]
[1727597997581,0.527085,65527.0,65526.0,0.16360931]
[1727597998299,0.076286,65526.0,65525.0,0.07629744]
[1727597998468,0.139586,65526.0,65525.0,0.16355542]
[1727597998669,0.139586,65526.0,65525.0,0.16355541]
[1727597999277,0.076287,65525.0,65524.0,0.19989744]
[1727597999484,0.106287,65525.0,65524.0,0.19629744]
[1727598000470,0.106287,65525.0,65524.0,0.12]
[1727598000675,0.152578,65523.0,65521.0,0.07629744]
[1727598000877,0.152578,65523.0,65520.0,0.06455709]
[1727598000878,0.076292,65521.0,65520.0,0.06455709]
[1727598001072,0.076294,65519.0,65518.0,0.06095709]
[1727598001277,0.076294,65519.0,65516.0,0.06455709]
[1727598001278,0.4108,65519.0,65516.0,0.06455709]
[1727598001580,0.4108,65519.0,65516.0,0.0036]
[1727598001581,0.076296,65517.0,65516.0,0.0036]
[1727598001775,0.076298,65516.0,65515.0,0.18095709]
[1727598002274,0.076298,65516.0,65515.0,0.12]
[1727598003377,0.076298,65516.0,65515.0,0.16564011]
[1727598004269,0.069298,65516.0,65515.0,0.12]
[1727598004776,0.079298,65516.0,65515.0,0.12]
[1727598005672,0.079298,65516.0,65515.0,0.128]
[1727598005673,0.080298,65516.0,65515.0,0.128]
[1727598006078,0.071298,65516.0,65515.0,0.128]
[1727598006273,0.061298,65516.0,65515.0,0.13063]
[1727598006581,0.071298,65516.0,65515.0,0.17627011]
[1727598008384,0.072298,65516.0,65515.0,0.17727011]
[1727598008682,0.072298,65516.0,65515.0,0.13163]
[1727598009586,0.062298,65516.0,65515.0,0.13163]
[1727598009784,0.062298,65516.0,65515.0,0.15163]
[1727598009977,0.062298,65516.0,65515.0,0.13163]
[1727598010468,0.072298,65516.0,65515.0,0.13163]
[1727598011977,0.072298,65516.0,65515.0,0.01163]
[1727598012382,0.072298,65516.0,65515.0,0.13163]
[1727598014183,0.072298,65516.0,65515.0,0.19243358]
[1727598014677,0.062298,65516.0,65515.0,0.19243358]
[1727598015085,0.072298,65516.0,65515.0,0.19243358]
[1727598015384,0.072298,65516.0,65515.0,0.13163]
[1727598017484,0.012,65516.0,65515.0,0.207929]
[1727598017677,0.076288,65525.0,65515.0,0.75775671]
[1727598017885,0.076288,65525.0,65524.0,0.1656091]
[1727598018182,0.076288,65525.0,65524.0,0.12]
[1727598018382,0.076288,65525.0,65524.0,0.18081214]
[1727598019785,0.077288,65525.0,65524.0,0.18081214]
[1727598019985,0.078288,65525.0,65524.0,0.18081214]
[1727598020196,0.078288,65525.0,65524.0,0.12]
[1727598020879,0.077288,65525.0,65524.0,0.12]
[1727598021088,0.078288,65525.0,65524.0,0.12]
[1727598021283,0.078288,65525.0,65524.0,0.196288]
[1727598022593,0.077288,65525.0,65524.0,0.197288]
[1727598023295,0.077288,65525.0,65524.0,0.27330318]
[1727598023693,0.077288,65525.0,65524.0,0.36031203]
[1727598025182,0.077288,65525.0,65524.0,0.27330318]
[1727598025492,0.001,65525.0,65524.0,0.38430089]
[1727598025691,0.3644,65533.0,65532.0,0.076279]
[1727598025890,0.3644,65533.0,65532.0,0.16329189]
[1727598025891,0.3608,65533.0,65532.0,0.16329189]
[1727598026296,0.3608,65533.0,65532.0,0.19629189]
[1727598026996,0.3608,65533.0,65532.0,0.27242053]
[1727598027200,0.437078,65533.0,65532.0,0.109279]
[1727598027704,0.3688,65533.0,65532.0,0.109279]
[1727598027890,0.3778,65533.0,65532.0,0.109279]
[1727598029501,0.3708,65533.0,65532.0,0.109279]
[1727598030205,0.3628,65533.0,65532.0,0.109279]
[1727598030410,0.3648,65533.0,65532.0,0.109279]
[1727598031398,0.3628,65533.0,65532.0,0.112279]
[1727598032698,0.3618,65533.0,65532.0,0.112279]
[1727598033707,0.001,65533.0,65532.0,0.112279]
[1727598034202,0.001,65533.0,65532.0,0.109279]
[1727598034402,0.001,65533.0,65532.0,0.13086846]
[1727598035904,0.011,65533.0,65532.0,0.13286846]
[1727598037402,0.01,65533.0,65532.0,0.13286846]
[1727598037703,0.012,65533.0,65532.0,0.13286846]
[1727598038900,0.012,65533.0,65532.0,0.13086846]
[1727598039095,0.011,65533.0,65532.0,0.13086846]
[1727598042905,0.011,65533.0,65532.0,0.13286846]
[1727598043319,0.011,65533.0,65532.0,0.2089971]
[1727598043696,0.011,65533.0,65532.0,0.2069971]
[1727598043899,0.012,65533.0,65532.0,0.2169971]
[1727598044299,0.002,65533.0,65532.0,0.30368683]
[1727598045200,0.002,65533.0,65532.0,0.22755819]
[1727598045799,0.002,65533.0,65532.0,0.303721]
[1727598046009,0.002,65533.0,65532.0,0.293721]
[1727598046307,0.002,65533.0,65532.0,0.21755819]
[1727598046709,0.076276,65535.0,65532.0,0.21755819]
[1727598046910,0.076276,65535.0,65533.0,0.16287293]
[1727598047203,0.076276,65535.0,65534.0,0.16295721]
[1727598048308,0.076276,65535.0,65534.0,0.08677401]
[1727598048506,0.076276,65535.0,65534.0,0.16299056]
[1727598048809,0.086276,65535.0,65534.0,0.16299056]
[1727598049009,0.086276,65535.0,65534.0,0.08677401]
[1727598050212,0.088276,65535.0,65534.0,0.08677401]
[1727598051213,0.092276,65535.0,65534.0,0.08677401]
[1727598053709,0.092276,65535.0,65534.0,0.08684835]
[1727598055410,0.092276,65535.0,65534.0,0.17821305]
[1727598056116,0.092276,65535.0,65534.0,0.17845146]
[1727598056313,0.092276,65535.0,65534.0,0.08687246]
[1727598058613,0.092276,65535.0,65534.0,0.08687198]
[1727598059623,0.092276,65535.0,65534.0,0.17846008]
[1727598060318,0.092276,65535.0,65534.0,0.17846016]
[1727598060715,0.092276,65535.0,65534.0,0.08687198]
[1727598060919,0.092276,65535.0,65533.0,0.00263]
[1727598060920,0.076277,65534.0,65533.0,0.00263]
[1727598061128,0.54776,65534.0,65531.0,0.07632768]
[1727598061327,0.15256,65531.0,65530.0,0.07632768]
[1727598061530,0.076283,65529.0,65527.0,0.07632768]
[1727598061829,0.076284,65528.0,65527.0,0.07632768]
[1727598062021,0.166284,65528.0,65527.0,0.16354819]
[1727598062433,0.076285,65527.0,65526.0,0.07632768]
[1727598062624,0.166285,65527.0,65526.0,0.16351654]
[1727598063415,0.076286,65526.0,65525.0,0.07632768]
[1727598063616,0.156286,65526.0,65525.0,0.16350836]
[1727598065515,0.076287,65525.0,65524.0,0.07992768]
[1727598065721,0.143287,65525.0,65524.0,0.16345817]
[1727598066329,0.076292,65521.0,65520.0,0.07981726]
[1727598066629,0.11,65521.0,65518.0,0.07850632]
[1727598066819,0.11,65521.0,65516.0,0.0036]
[1727598066820,0.076296,65517.0,65516.0,0.0036]
[1727598067024,0.186296,65517.0,65516.0,0.0036]
[1727598067325,0.720472,65517.0,65516.0,0.04572078]
[1727598067526,0.076299,65515.0,65514.0,0.04572078]
[1727598067727,0.0763,65514.0,65513.0,0.04572078]
[1727598067931,0.1563,65514.0,65513.0,0.04572078]
[1727598068234,0.076301,65513.0,65512.0,0.04532078]
[1727598068531,0.4708,65513.0,65508.0,0.0036]
[1727598068731,0.3608,65509.0,65508.0,0.0036]
[1727598068923,0.4708,65509.0,65504.0,0.0036]
[1727598070027,0.4708,65509.0,65508.0,0.003]
[1727598070028,0.548106,65509.0,65508.0,0.003]
[1727598071033,0.07631,65505.0,65504.0,0.0036]
[1727598071234,0.08631,65505.0,65504.0,0.003]
[1727598072330,0.07631,65505.0,65504.0,0.003]
[1727598074025,0.07531,65505.0,65504.0,0.003]
[1727598074930,0.08631,65505.0,65504.0,0.004]
[1727598075125,0.07631,65505.0,65504.0,0.004]
[1727598075327,0.07331,65505.0,65504.0,0.001]
[1727598077329,0.08331,65505.0,65504.0,0.001]
[1727598078531,0.08431,65505.0,65504.0,0.001]
[1727598079441,0.012,65505.0,65504.0,0.001]